Cogmind - Beta 9.6 @@@ ROGUE MODE // 2020.08.27 @ 00:14:58 Player: kerapace Result: Destroyed by D-53 Grenadier with Mini Grenade Launcher Performance ------------- Evolutions (0) 0 Regions Visited (4) 800 Robots Destroyed (30) 150 Value Destroyed (383) 383 Prototype IDs (2) 40 Alien Tech Used (0) 0 Bonus (-35) -35 TOTAL SCORE: 1338 Bonus ------- Friendly Fire -35 Cogmind --------- Core Integrity 0/250 Matter 250/300 Energy 121/125 System Corruption 2% Temperature Cool (68) Movement Treading (220) Ox3 Location -9/Mines Parts ------- > --- POWER (1) -------- Light Ion Engine > --- PROPULSION (2) --- Light Treads > --- UTILITY (2) ------ High-capacity Storage Unit High-capacity Storage Unit > --- WEAPON (2) ------- Beam Cannon > --- INVENTORY (20) --- Light Fission Core Light Treads Light Treads Compact Wheel Improved Heat Sink Large Storage Unit Large Storage Unit High-capacity Battery (400) High-capacity Matter Pod (129) Experimental Sensor Array Hacking Suite Medium Laser Light Assault Rifle Bore Cannon Grenade Launcher Peak State ------------ > --- POWER ------------ Light Ion Engine > --- PROPULSION ------- Light Treads Wheel > --- UTILITY ---------- High-capacity Storage Unit High-capacity Storage Unit > --- WEAPON ----------- Medium Laser Medium Laser > --- INVENTORY -------- Light Fission Core Light Treads Light Treads Light Treads Compact Wheel Improved Heat Sink Large Storage Unit Large Storage Unit High-capacity Battery Experimental Sensor Array Hacking Suite Medium Laser Medium Laser Medium Laser Beam Cannon Light Assault Rifle Grenade Launcher [Rating: 10] Favorites ----------- Power Light Ion Engine Engine Light Ion Engine Propulsion Light Treads Treads Light Treads Wheel Wheel Utility Large Storage Unit Storage Large Storage Unit Weapon Medium Laser Energy Gun Medium Laser Energy Cannon Beam Cannon Launcher Grenade Launcher Build | -11 -10 -10 -10 -9 ------- Run | Scr Mat Min Exi Min Slots Evolved . | . . . . . Power . | . . . . . Propulsion . | . . . . . Utility . | . . . . . Weapon . | . . . . . Parts Attached 25 | 7 2 7 3 6 Power 3 | 2 . 1 . . Engine 3 | 2 . 1 . . Core . | . . . . . Reactor . | . . . . . Propulsion 6 | 2 . 2 1 1 Treads 3 | 1 . . 1 1 Leg . | . . . . . Wheel 3 | 1 . 2 . . Hover . | . . . . . Flight . | . . . . . Utility 5 | 1 2 . 2 . Device . | . . . . . Storage 5 | 1 2 . 2 . Processor . | . . . . . Hackware . | . . . . . Protection . | . . . . . Artifact . | . . . . . Weapon 11 | 2 . 4 . 5 Energy Gun 8 | 2 . 3 . 3 Energy Cannon 1 | . . . . 1 Ballistic Gun . | . . . . . Ballistic Cannon . | . . . . . Launcher 2 | . . 1 . 1 Special Weapon . | . . . . . Impact Weapon . | . . . . . Slashing Weapon . | . . . . . Piercing Weapon . | . . . . . Special Melee Weapon . | . . . . . Unidentified Prototypes . | . . . . . Parts Lost 9 | . . 3 . 6 Power 1 | . . 1 . . Propulsion 2 | . . . . 2 Utility . | . . . . . Weapon 6 | . . 2 . 4 Highest Loss Streak 6 | . . 2 . 6 Average Slot Usage (%) 99 | . 98 100 100 100 Engine 14 | . 14 14 14 14 Treads 14 | . 14 14 14 17 Wheel 13 | . 14 14 14 10 Storage 27 | . 26 28 28 28 Energy Gun 27 | . 28 26 28 26 Naked Turns . | . . . . . Heaviest Build 72 | 13 41 42 71 72 Greatest Support 40 | 20 20 20 20 40 Greatest Overweight (x) 7 | 1 4 4 7 7 Average Overweight (x) 3 | . 3 2 4 5 Largest Inventory Capacity 20 | 6 16 16 20 20 Average Capacity 16 | 5 15 16 17 20 Most Carried 18 | 4 15 16 18 18 Average Carried 13 | 2 8 15 16 17 Final Capacity 20 | 6 16 16 20 20 Final Carried 18 | 4 15 16 18 15 Class Distribution -------------------- 80% | Mutant 19% | Hauler-Mutant Dominant Class ---------------- Mutant | -10/Materials Mutant | -10/Mines Mutant | -10/Exiles Hauler-Mutant | -9/Mines Resources | -11 -10 -10 -10 -9 ----------- Run | Scr Mat Min Exi Min Matter Collected 440 | 236 54 69 71 10 Remotely . | . . . . . Salvage Created 612 | . 401 169 . 42 Parts 37 | . 20 17 . . Haulers Intercepted 2 | . 2 . . . Recyclers Shooed . | . . . . . Parts Field Recycled . | . . . . . Retrieved Matter . | . . . . . Parts Self-Destructed . | . . . . . Prevented . | . . . . . Kills | -11 -10 -10 -10 -9 ------- Run | Scr Mat Min Exi Min Combat Hostiles Destroyed 22 | . 7 8 . 7 Guns 11 | . 7 2 . 2 AOE 11 | . . 6 . 5 Classes Destroyed 8 | . 5 2 . 1 Worker 1 | . 1 . . . Builder 1 | . . 1 . . Tunneler 2 | . . 2 . . Hauler 2 | . 2 . . . Operator 2 | . 2 . . . Swarmer 9 | . 3 6 . . Grunt 6 | . 4 2 . . Assembled 7 | . . . . 7 Best Kill Streak 7 | . 5 5 . 7 Combat Bots Only 7 | . 3 4 . 7 Max Kills in Single Turn 4 | . 1 3 . 4 Gunslinging . | . . . . . Exploded 3 | . . 2 . 3 Melee . | . . . . . Uniques/NPCs Destroyed . | . . . . . Combat | -11 -10 -10 -10 -9 -------- Run | Scr Mat Min Exi Min Damage Taken 1174 | . 218 228 . 728 Core 253 | . 67 17 . 169 Absorbed by Shields . | . . . . . Core Remaining (%) 100 | 100 . . . . Volleys Fired 59 | . 32 16 . 11 Largest 2 | . 2 2 . 2 Hottest 110 | . 90 100 . 110 Shots Fired 115 | . 62 32 . 21 Gun 105 | . 62 27 . 16 Cannon 2 | . . . . 2 Launcher 8 | . . 5 . 3 Special . | . . . . . Kinetic . | . . . . . Thermal 74 | . 30 26 . 18 Explosive 8 | . . 5 . 3 Electromagnetic 33 | . 32 1 . . Robot Hit Streak 13 | . 6 13 . 8 Robot Miss Streak 4 | . 3 4 . 3 Penetration Max . | . . . . . Secondary Targets . | . . . . . Shots Hit Robots 69 | . 36 19 . 14 Core Hits 50 | . 17 14 . 19 Critical Hits . | . . . . . Critical Kills . | . . . . . Critical Parts Destroyed . | . . . . . Melee Attacks . | . . . . . Impact . | . . . . . Slashing . | . . . . . Piercing . | . . . . . Sneak Attacks . | . . . . . Combat Hostiles . | . . . . . Follow-up Attacks . | . . . . . Damage Inflicted 1874 | . 634 717 . 523 Guns 856 | . 478 227 . 151 Cannons 34 | . . . . 34 Explosions 984 | . 156 490 . 338 Melee . | . . . . . Ramming . | . . . . . Kinetic . | . . . . . Thermal 691 | . 294 212 . 185 Explosive 828 | . . 490 . 338 Electromagnetic 355 | . 340 15 . . Impact . | . . . . . Slashing . | . . . . . Piercing . | . . . . . Highest Corruption 2 | . 2 2 2 2 Average Corruption 1 | . 1 2 2 2 Corruption Purged . | . . . . . Effects 11 | . 4 4 3 . Message Errors 8 | . 4 2 2 . Energy Discharges 2 | . . 1 1 . Data Loss (minor) 1 | . . 1 . . Overload Shots . | . . . . . Overflow Damage 38 | . 5 26 . 7 Projectiles . | . . . . . Explosions 38 | . 5 26 . 7 Melee . | . . . . . Knockbacks . | . . . . . Impact . | . . . . . Kinetic . | . . . . . Secondary . | . . . . . Self-Inflicted Damage 64 | . 34 30 . . Shots 2 | . 1 1 . . Rammed . | . . . . . Targets Rammed . | . . . . . Kicked . | . . . . . Crushed . | . . . . . Highest Temperature 330 | . 330 254 . 269 Average Temperature 104 | . 115 76 . 114 Received Heat Transfer 273 | . 84 69 . 120 Effects 1 | . . . . 1 Energy Bleed 1 | . . . . 1 Siege Activations . | . . . . . Robots Corrupted . | . . . . . Combat Hostiles . | . . . . . Parts Fried 1 | . 1 . . . Impact Corruptions . | . . . . . Robots Melted . | . . . . . Combat Hostiles . | . . . . . Parts Melted 2 | . 1 1 . . Heat Transferred 1804 | . 657 629 . 518 Parts Sabotaged . | . . . . . Parts Stolen . | . . . . . Parts Stripped . | . . . . . Power Chain Reactions 4 | . 4 . . . Missiles Intercepted . | . . . . . Alert | -11 -10 -10 -10 -9 ------- Run | Scr Mat Min Exi Min Peak Influence 269 | . 254 269 . . Average Influence 120 | . 151 142 . . Maximum Alert Level 1 | . 1 1 . . Low Security (%) 75 | 100 58 79 . 100 Level 1 24 | . 41 20 . . Level 2 . | . . . . . Level 3 . | . . . . . Level 4 . | . . . . . Level 5 . | . . . . . High Security . | . . . . . Max Security . | . . . . . Squads Dispatched 1 | . 1 . . . Investigation . | . . . . . Extermination . | . . . . . Reinforcement 1 | . 1 . . . Assault . | . . . . . Garrison . | . . . . . Intercept . | . . . . . Construction Impeded . | . . . . . Haulers Reinforced . | . . . . . Stealth | -11 -10 -10 -10 -9 --------- Run | Scr Mat Min Exi Min Distress Signals 3 | . 3 . . . Communications Jammed . | . . . . . Distress Signals . | . . . . . Times Spotted 32 | . 13 9 . 10 Peak Tracking Total 8 | . 6 3 . 8 Tactical Retreats 2 | . . 1 . 1 Traps | -11 -10 -10 -10 -9 ------- Run | Scr Mat Min Exi Min Traps Triggered 2 | . 2 . . . Indirectly . | . . . . . Trap Hack Attempts . | . . . . . Triggered . | . . . . . Disarmed . | . . . . . Reprogrammed . | . . . . . Reused . | . . . . . Traps Extracted . | . . . . . Installed . | . . . . . Triggered . | . . . . . Machines | -11 -10 -10 -10 -9 ---------- Run | Scr Mat Min Exi Min Machines Disabled 2 | . 2 . . . Max in Single Turn 1 | . 1 . . . Machines Sabotaged . | . . . . . Garrisons Compromised . | . . . . . Overloaded Fab Kills . | . . . . . Fab Network Shutdowns . | . . . . . Hacking | -11 -10 -10 -10 -9 --------- Run | Scr Mat Min Exi Min Machines Accessed 3 | . 2 . 1 . Terminals 2 | . 2 . . . Fabricators . | . . . . . Repair Stations . | . . . . . Recycling Units . | . . . . . Scanalyzers . | . . . . . Garrison Access . | . . . . . Total Hacks 7 | . 6 . 1 . Successful 2 | . 1 . 1 . Failed 5 | . 5 . . . Catastrophic . | . . . . . Database Lockouts . | . . . . . Manual . | . . . . . Terminals 6 | . 6 . . . Fabricators . | . . . . . Repair Stations . | . . . . . Recycling Units . | . . . . . Scanalyzers . | . . . . . Garrison Access . | . . . . . Terminal Hacks 2 | . 1 . 1 . Record 1 | . . . 1 . Prototype ID Bank 1 | . 1 . . . Fabricator Hacks . | . . . . . Repair Station Hacks . | . . . . . Recycling Unit Hacks . | . . . . . Scanalyzer . | . . . . . Garrison Access Hacks . | . . . . . Unauthorized Hacks . | . . . . . Terminals . | . . . . . Fabricators . | . . . . . Repair Stations . | . . . . . Recycling Units . | . . . . . Scanalyzers . | . . . . . Garrison Access . | . . . . . Data Cores Recovered 1 | . 1 . . . Used 1 | . 1 . . . Hacking Detections 2 | . 2 . . . Full Trace Events . | . . . . . Feedback Events . | . . . . . Feedback Blocked . | . . . . . Robot Schematics Acquired . | . . . . . Robots Built . | . . . . . Matter . | . . . . . Time . | . . . . . Total Robot Build Rating . | . . . . . Part Schematics Acquired . | . . . . . Parts Built . | . . . . . Matter . | . . . . . Time . | . . . . . Total Part Build Rating . | . . . . . Parts Repaired . | . . . . . Time . | . . . . . Parts Recycled . | . . . . . Recycled Matter . | . . . . . Retrieved Matter . | . . . . . Retrieved Components . | . . . . . Parts Scanalyzed . | . . . . . Part Schematics Acquired . | . . . . . Parts Damaged . | . . . . . Bothacking | -11 -10 -10 -10 -9 ------------ Run | Scr Mat Min Exi Min Used RIF Installer . | . . . . . Robots Hacked . | . . . . . Non-combat . | . . . . . Combat . | . . . . . Robot Hacks Applied . | . . . . . Relay Couplers Released . | . . . . . Robots Rewired . | . . . . . Allies Hacked . | . . . . . Hacks Repelled . | . . . . . Allies | -11 -10 -10 -10 -9 -------- Run | Scr Mat Min Exi Min Total Allies . | . . . . . Largest Group . | . . . . . Highest-Rated Group . | . . . . . Highest-Rated Ally . | . . . . . Total Orders . | . . . . . Ally Attacks . | . . . . . Total Damage . | . . . . . Kills . | . . . . . Allies Corrupted . | . . . . . Allies Melted . | . . . . . Intel | -11 -10 -10 -10 -9 ------- Run | Scr Mat Min Exi Min Robot Analysis Total . | . . . . . Derelict Logs Recovered 1 | . . 1 . . Drone Launches . | . . . . . Drone Recoveries . | . . . . . Exploration | -11 -10 -10 -10 -9 ------------- Run | Scr Mat Min Exi Min Turns Passed 1483 | 48 379 574 329 153 Spaces Moved 1038 | 42 224 441 260 71 Core 4 | 4 . . . . Treads 25 | 1 7 1 2 14 Legs . | . . . . . Wheels 1009 | 37 217 440 258 57 Hover . | . . . . . Flight . | . . . . . Fastest Speed 50 | 50 90 110 110 150 Average Speed 120 | 82 118 116 124 155 Slowest Speed 200 | 160 200 200 180 180 Overloaded Moves . | . . . . . Propulsion Burnouts . | . . . . . Robots Hopped . | . . . . . Cave-ins Triggered . | . . . . . Exploration Rate (%) 40 | 4 39 85 58 17 Regions Visited 4 Branch Regions 3 Pre-discovered Areas 1 | . . . 1 . Known Exits Taken . | . . . . . Unknown Exits Taken 4 | 1 1 1 1 . Scrap Searched 3 | . . 3 . . Spaces Dug . | . . . . . Terrain Destroyed 76 | . 7 46 . 23 Melee . | . . . . . Projectile . | . . . . . AOE 76 | . 7 46 . 23 Actions | -11 -10 -10 -10 -9 --------- Run | Scr Mat Min Exi Min Total 1152 | 52 274 469 266 91 Wait 9 | . 7 . . 2 Move 1034 | 41 223 440 259 71 Hop . | . . . . . Pick Up 21 | 4 10 4 2 1 Fast Attach 6 | 5 1 . . . Attach 8 | 1 . 3 . 4 Detach . | . . . . . Swap 11 | 1 1 4 3 2 Drop 4 | . . 2 2 . Fire 59 | . 32 16 . 11 Melee . | . . . . . Ram . | . . . . . Kick . | . . . . . Crush . | . . . . . Escape Stasis . | . . . . . Rewire . | . . . . . Trap . | . . . . . Miscellaneous . | . . . . . Route ------- -11/Scrapyard -10/Materials -10/Mines (discovered 3 exits: [*Mat x2] / *Exi) -10/Exiles -9/Mines History --------- Turn | Location | Event 29 | -11/Scrapyard | Discovered new exit (range 16) 49 | -11/Scrapyard | Entered Materials 307 | -10/Materials | Build established: Mutant 416 | -10/Materials | Discovered new exit (range 8) 428 | -10/Materials | Entered Mines 448 | -10/Mines | Met a Derelict bent on vengeance 516 | -10/Mines | Learned location of 1 exit from Materials 523 | -10/Mines | Deemed a non-threat by the Exiles lab entrance 695 | -10/Mines | Discovered new exit (range 9) 790 | -10/Mines | Found a damaged Exp. Sensor Array with a note attached 795 | -10/Mines | Found Prototype Device 826 | -10/Mines | Discovered new exit (range 9) 998 | -10/Mines | Discovered new exit (range 5) 1002 | -10/Mines | Entered Exiles 1034 | -10/Exiles | Met 8R-AWN 1051 | -10/Exiles | Met EX-HEX 1096 | -10/Exiles | Met EX-DEC 1100 | -10/Exiles | Learned location of Zion (-7) 1315 | -10/Exiles | Discovered new exit (range 14) 1331 | -10/Exiles | Entered Mines 1401 | -9/Mines | Assembled infested the area 1406 | -9/Mines | Assisted by a Guerilla fighting off Assembled 1464 | -9/Mines | Destroyed 7 combat bots 1475 | -9/Mines | Core integrity fell below 50% 1483 | -9/Mines | Core integrity fell below 20% 1484 | -9/Mines | Destroyed by D-53 Grenadier with Mini Grenade Launcher Last Messages --------------- 01420_ as-51356 destroyed. 01420_ as-33856 destroyed. 01423_ as-71080 destroyed. 01423_ Destroyed Asb. F-torch. 01423_ as-29274 destroyed. 01423_ as-04115 destroyed. 01423_ as-11664 destroyed. 01442_ Wheel destroyed. 01443_ as-66036 destroyed. 01448_ Overheating: Energy bleed (-24). 01452_ Acquired Bore Cannon. 01453_ Acquired 8 matter. 01455_ Acquired 2 matter. 01472_ Med. Laser destroyed. 01474_ MW-TAW(h) destroyed. 01476_ Med. Laser destroyed. 01477_ The unstable cave ceiling collapses. 01480_ Lgt. Treads destroyed. 01482_ Med. Laser destroyed. 01484_ The unstable cave ceiling collapses. Map ----- +----------------------------------------------------+ | | | | | | | | | | | | | | | ????????????????????????????????????????? | | ????????????????????????????????????????? | | ????????????????????????????????????????? | | ????????????????????????????????????????? | | ????????????????????????????????????????? | | ????????????????????????????????????????? | | ????????????????????????????????????????? | | ????????????????????????????????????????? | | ????????????????????????????????????????? | | ????????????????????????######??????????? | | ????????????????????????#;; ##?????????? | | ???????????????????????## #?????????? | | ???????????????????????# #?????????? | | ??????????????????????## ##????????? | | ?????????????????????## ###??????? | | ????????????????????## #< ###????? | | ????????????????????# #????? | | ????????????????????# #????? | | ????????????????????# @ ###??? | | ????????????????????# ##?? | | ????????????????? #?? | | ?????????????? d # #?? | | ??????????? d ### % ##?? | | ????????????# # #### ?### ##??? | | ???????????? ####???? ??## #???? | | ????????????## ?????# ?? ??# #???? | | ?????????????### # ??????# ### #???? | | ???????????????#####?????# #???? | | ?????????????????????????# ### #???? | | ?????????????????????????###??????# #???? | | ??????????????????????????????????# #???? | | ??????????????????????????????????# #???? | | ??????????????????????????????????# #???? | | ??????????????????????????????????# ###?? | | ?????????????????????????????###### ##? | | ????????????????????????????## ## #? | | ???????????????????????????## #? | | ???????????????????????????# ##? | | ???????????????????????????# ##?? | | ???????????????????????????# # #??? | | ???????????????????????????## ## #??? | | ????????????????????????????####### #??? | | ?????????????????????????????????## #??? | +----------------------------------------------------+ Best States ------------- Heat Dissipation 25 Energy Generation 10 Energy Capacity 250 Matter Stores 300 Matter Capacity 300 Sight Range 16 Terrain Scan Density 10 Evasion (%) 44 Recoil Reduction 2 Item Schematics ----------------- None Robot Schematics ------------------ None Fabricated ------------ Nothing Alien Tech Used ----------------- None Achievements -------------- None Challenges ------------ None Game ------ Seed CatalystCoreCore Manual? 0 Play Time 00:15:24 Cumulative 367.5 hours Start 2020.08.26 @ 23:59:14 End 2020.08.27 @ 00:14:58 Sessions 1 Manual Loads 0 Difficulty Rogue Special Mode None Game No. 277 Rogue 277 Adventurer 0 Explorer 0 Win Type - Total 11 Types 10/0/0/1/0/0/0 Lore% 77 Gallery% 77 Achievement% 63 Wizard Run 0 Options --------- ASCII 0 Keyboard 0 Movement Arrows Keybinds 0 Fullscreen 0 Font 16/SmallcapsGlow Map View 76x50 Tactical HUD 1 Map Filters NONE Filters NONE Steam 1 RUN: a7d8a4ff-ac54-4112-b4b0-8f8b8f789d49